lending/lending_fUSD_20240120
["ID","MTS","AMOUNT","RATE_DAILY","PERIOD"]
[312331512,1705783839069,-150.0,0.00022999,2]
[312331513,1705783839078,-151.5463237,0.00022999,2]
[312331516,1705783839087,-150.0,0.00022999,2]
[312331518,1705783839097,-151.5463237,0.00022999,2]
[312331519,1705783839105,-150.0,0.00022999,2]
[312331521,1705783839115,-151.5463237,0.00022999,2]
[312331523,1705783839124,-150.0,0.00022999,2]
[312331526,1705783839133,-2197892.33914408,0.00023,3]
[312331528,1705783839146,-200873.95128124,0.00023,3]
[312331530,1705783839155,-225613.81723476,0.00023,2]
[312331532,1705783839167,-103956.77504338,0.00023,2]
[312331535,1705783839182,-294.36661831,0.00023,2]
[312331537,1705783839197,-84232.91025911,0.00023,2]
[312331540,1705783839208,-16104.48841526,0.00023,2]
[312331542,1705783839224,-8176.4,0.00023,2]
[312331546,1705783839246,-1192.64794796,0.00023,2]
[312331548,1705783839258,-336.13,0.00023,2]
[312331559,1705783840456,-1178211.02145752,0.00023,2]
[312331560,1705783841181,-1880.115,0.00023,2]
[312331561,1705783841193,-465.46565235,0.00023,2]
[312331562,1705783841204,-500.0,0.00023,2]
[312331563,1705783841246,-696.22574302,0.00023,2]
[312331588,1705783843022,-419203.30216854,0.00023,2]
[312331589,1705783843034,-10313.085,0.00023,2]
[312331590,1705783843078,-364.101181,0.00023,2]
[312331591,1705783843137,-1705.67103212,0.00023,2]
[312331603,1705783845854,-605.24956456,0.00022999,2]
[312331605,1705783845864,-155.0,0.00022999,2]
[312331606,1705783845873,-1573.18772875,0.00022999,2]
[312331617,1705783845965,-14550.36091741,0.00022999,2]
[312331648,1705784057638,327.21,0.00018854,2]
[312331649,1705784064012,18111.76408964,0.00025,30]
[312331650,1705784106622,-155.0,0.0001969,2]
[312331651,1705784106643,-260.29229258,0.0001969,2]
[312331652,1705784106666,-215.63475234,0.0001969,2]
[312331653,1705784106688,-155.0,0.0001969,2]
[312331654,1705784106710,-245.02111163,0.0001969,2]
[312331655,1705784106730,-221.15744731,0.00019691,2]
[312331656,1705784106751,-302.37969356,0.00019691,2]
[312331657,1705784106773,-418.28828988,0.00019691,2]
[312331658,1705784106794,-27.2264127,0.00019691,2]
[312331659,1705784107154,-127.7735873,0.00019691,2]
[312331660,1705784107174,-270.13923734,0.00019691,2]
[312331661,1705784107193,-1602.08717536,0.00019691,2]
[312331662,1705784107645,-2000.0,0.00019691,2]
[312331663,1705784108087,-2000.0,0.00019691,2]
[312331664,1705784108503,-2000.0,0.00019691,2]
[312331665,1705784108881,-35417.16529007,0.00019691,2]
[312331666,1705784108903,-272.92829241,0.00019692,2]
[312331667,1705784108923,-235.25134461,0.00019692,2]
[312331668,1705784108943,-155.0,0.00019692,2]
[312331669,1705784108963,-24354.95155812,0.00019692,2]
[312331670,1705784108983,-4351.63106401,0.00019693,2]
[312331671,1705784109004,-5445.7964682,0.00019693,2]
[312331672,1705784109025,-4638.11355098,0.00019693,2]
[312331673,1705784109045,-3031.20814747,0.00019694,2]
[312331674,1705784109065,-635.66136512,0.00019695,2]
[312331675,1705784109086,-33387.39114312,0.00019695,2]
[312331676,1705784109106,-1229.20601844,0.00019696,2]
[312331677,1705784109126,-1500.0,0.00019696,2]
[312331678,1705784109146,-150.0,0.00019698,2]
[312331679,1705784109166,-1605.59259017,0.00019699,2]
[312331680,1705784109186,-3677.14662018,0.00019699,2]
[312331681,1705784109205,-154.999999,0.0002,2]
[312331682,1705784109225,-155.0,0.00020458,2]
[312331683,1705784109244,-155.0,0.00020458,2]
[312331684,1705784109264,-867.50020387,0.00020458,2]
[312331685,1705784109283,-177.91292476,0.00020459,2]
[312331686,1705784109304,-1853.21827402,0.00020459,2]
[312331687,1705784109323,-155.0,0.00020463,2]
[312331688,1705784109346,-616.97420109,0.00020466,2]
[312331689,1705784109365,-150.0,0.00020513,2]
[312331690,1705784109385,-160.21,0.00020611,2]
[312331691,1705784109406,-408.34,0.00020684,2]
[312331692,1705784109426,-491.81,0.00020772,2]
[312331693,1705784109448,-327.21,0.00021118,2]
[312331694,1705784109469,-160.21,0.00021581,2]
[312331695,1705784109488,-10345.46536385,0.00021591,2]
[312331696,1705784109507,-16769.48246492,0.000216,2]
[312331697,1705784109531,-166.63,0.00021602,2]
[312331698,1705784109552,-166.63,0.00021625,2]
[312331699,1705784109572,-476.95,0.00021644,2]
[312331700,1705784109594,-166.63,0.00021648,2]
[312331701,1705784109633,-166.63,0.0002167,2]
[312331702,1705784109673,-166.63,0.00021693,2]
[312331703,1705784109697,-166.63,0.00021716,2]
[312331704,1705784109719,-166.63,0.00021739,2]
[312331705,1705784109742,-166.63,0.00021761,2]
[312331706,1705784109764,-166.63,0.00021784,2]
[312331707,1705784109786,-166.63,0.00021807,2]
[312331708,1705784109807,-500.0,0.00021817,2]
[312331709,1705784109829,-166.63,0.0002183,2]
[312331710,1705784109850,-283.535,0.00021846,2]
[312331711,1705784109871,-166.63,0.00021852,2]
[312331712,1705784109892,-462.4,0.00021854,2]
[312331713,1705784109914,-166.63,0.00021875,2]
[312331714,1705784109935,-166.63,0.00021898,2]
[312331715,1705784109955,-750.0,0.000219,2]
[312331716,1705784109976,-74604.93887391,0.00021917,2]
[312331717,1705784109996,-5821.72,0.00021918,2]
[312331718,1705784110019,-166.63,0.0002192,2]
[312331719,1705784110041,-166.63,0.00021943,2]
[312331720,1705784110063,-166.63,0.00021966,2]
[312331721,1705784110085,-166.63,0.00021989,2]
[312331722,1705784110105,-176.36,0.00022,2]
[312331723,1705784110125,-500.0,0.00022,2]
[312331724,1705784110145,-257.02,0.00022,2]
[312331725,1705784110166,-166.63,0.00022011,2]
[312331726,1705784110185,-2000.0,0.00022031,2]
[312331727,1705784110205,-166.63,0.00022034,2]
[312331728,1705784110226,-408.34,0.00022328,2]
[312331729,1705784110246,-476.95,0.00022445,2]
[312331730,1705784110266,-176.36,0.00022548,2]
[312331731,1705784110285,-979.43084688,0.00022548,2]
[312331732,1705784110306,-160.21,0.0002255,2]
[312331733,1705784110326,-280.13609182,0.00022765,2]
[312331734,1705784110347,-874.92166106,0.00022797,2]
[312331735,1705784110367,-22497.02395693,0.000228,2]
[312331736,1705784110386,-231945.72668499,0.000228,2]
[312331737,1705784110787,263.52320563,0.00019689,2]
[312331738,1705784111494,190.97652873,0.00019689,2]
[312331739,1705784130545,-215.41213944,0.00022776,2]
[312331740,1705784130566,-256.13337218,0.00022798,2]
[312331741,1705784130586,-155.0,0.00022798,2]
[312331742,1705784130607,-3031.20814747,0.00022798,2]
[312331743,1705784130628,-270.13923734,0.00022798,2]
[312331744,1705784130652,-259.57374978,0.00022799,2]
[312331745,1705784130673,-244.33054012,0.00022799,2]
[312331746,1705784130693,-3095.50963829,0.00022799,2]
[312331747,1705784130713,-1851.31601875,0.00022799,2]
[312331748,1705784130734,-155.0,0.00022799,2]
[312331749,1705784130754,-346.13075499,0.00022799,2]
[312331750,1705784131039,-155.0,0.00022799,2]
[312331751,1705784131061,-275.98808753,0.00022799,2]
[312331752,1705784131082,-301.57325524,0.00022799,2]
[312331753,1705784131104,-6677.25570738,0.00022799,2]
[312331754,1705784131124,-491.298365,0.00022799,2]
[312331755,1705784131145,-331.23533859,0.00022799,2]
[312331756,1705784131166,-177.72891972,0.00022799,2]
[312331757,1705784131186,-1068.82822182,0.00022799,2]
[312331758,1705784131207,-6710.03693153,0.00022799,2]
[312331759,1705784131229,-12446.05423403,0.00022799,2]
[312331760,1705784131249,-220.74699604,0.00022799,2]
[312331761,1705784131269,-185.7482963,0.00022799,2]
[312331762,1705784131290,-235.65370475,0.00022799,2]
[312331763,1705784131310,-4627.55845064,0.00022799,2]
[312331764,1705784131330,-56215.53989307,0.000228,2]
[312331765,1705784215422,300.0,0.00019592,2]
[312331766,1705784402499,257.04625262,0.00019592,2]
[312331767,1705784490022,1866.471168,0.00035941,30]
[312331768,1705784558297,353.58,0.00018234,2]
[312331769,1705784589836,305.810498,0.00035941,30]
[312331770,1705784672210,425.61985343,0.00019325,2]
[312331771,1705784681036,155.24194201,0.00019542,2]
[312331772,1705784695660,-5002.0,0.00020285,7]
[312331773,1705784703003,54.01221758,0.00019325,2]
[312331774,1705784703026,166.37930952,0.00019325,2]
[312331775,1705784713501,-3000.0,0.00019761,2]
[312331776,1705784716998,206.89658681,0.00019325,2]
[312331777,1705784757331,-666.0,0.00020285,7]
[312331778,1705784768252,396.446525,0.00019656,2]
[312331779,1705784819959,209.00334414,0.00019656,2]
[312331780,1705784829128,155.0,0.00019656,2]
[312331781,1705784832709,155.0,0.00019656,2]
[312331782,1705784836584,245.13099503,0.00019542,2]
[312331783,1705784837923,234.90330055,0.00019656,2]
[312331784,1705784839676,169.81246034,0.00019656,2]
[312331785,1705784840163,61.42747861,0.00019656,2]
[312331786,1705784840184,93.57252139,0.00019656,2]
[312331787,1705784842040,155.4450733,0.00019656,2]
[312331788,1705784845184,155.0,0.00019656,2]
[312331789,1705784845399,157.39532955,0.00019656,2]
[312331790,1705784845623,155.0,0.00019656,2]
[312331791,1705784847037,220.31493018,0.00019656,2]
[312331792,1705784848012,157.03308775,0.00019656,2]
[312331793,1705784848735,155.0,0.00019656,2]
[312331794,1705784849122,155.1479505,0.00019656,2]
[312331795,1705784849596,155.26494261,0.00019656,2]
[312331796,1705784853125,155.11252983,0.00019656,2]
[312331797,1705784853931,155.0,0.00019656,2]
[312331798,1705784857696,130.71363489,0.00019656,2]
[312331799,1705784857716,67.26114705,0.00019656,2]
[312331800,1705784859922,234.90330055,0.00019656,2]
[312331801,1705784862203,224.71191091,0.00019656,2]
[312331802,1705784863620,155.0,0.00019656,2]
[312331803,1705784867171,155.0,0.00019656,2]
[312331804,1705784868702,155.0,0.00019656,2]
[312331805,1705784870923,218.3703028,0.00019656,2]
[312331806,1705784871360,220.31493018,0.00019656,2]
[312331807,1705784877914,155.0,0.00019656,2]
[312331808,1705784878247,414.43840851,0.00019656,2]
[312331809,1705784878269,118.93629471,0.00019656,2]
[312331810,1705784886922,250.0,0.00019682,2]
[312331811,1705784889179,179.9034816,0.00019656,2]
[312331812,1705784891026,219.51508683,0.00019656,2]
[312331813,1705784894969,177.01,0.00019673,2]
[312331814,1705784895927,234.90330055,0.00019656,2]
[312331815,1705784896025,190.97652873,0.00019655,2]
[312331816,1705784900241,533.37470322,0.00019656,2]
[312331817,1705784911936,95.38060436,0.00019655,2]
[312331818,1705784911961,139.52269619,0.00019655,2]
[312331819,1705784918242,578.33965797,0.00019655,2]
[312331820,1705784929407,1036.76,0.00019623,2]
[312331821,1705784929927,234.90330055,0.00019655,2]
[312331822,1705784941829,10.47434529,0.00019635,2]
[312331823,1705784985725,14120.57,0.00019565,2]
[312331824,1705784994826,474.00607165,0.000196,2]
[312331826,1705785017098,361.76,0.00017685,2]
[312331827,1705785024943,234.97295648,0.000196,2]
[312331853,1705785032033,-544.02,0.00019601,2]
[312331854,1705785032046,-1596.23984846,0.00019601,2]
[312331855,1705785032056,-233.29692962,0.00019601,2]
[312331856,1705785032067,-155.0,0.00019602,2]
[312331857,1705785032078,-155.0,0.00019602,2]
[312331858,1705785032088,-1041.72732894,0.00019602,2]
[312331859,1705785032098,-3031.20814747,0.00019602,2]
[312331860,1705785032108,-215.63475234,0.00019602,2]
[312331861,1705785032118,-270.13923734,0.00019603,2]
[312331862,1705785032129,-202.76099161,0.00019603,2]
[312331863,1705785032139,-1050.80754485,0.00019603,2]
[312331864,1705785032149,-300.0,0.00019604,2]
[312331865,1705785032159,-1061.34191461,0.00019604,2]
[312331866,1705785032169,-155.0,0.00019604,2]
[312331867,1705785032179,-155.0,0.00019604,2]
[312331868,1705785032189,-2605.00017996,0.00019604,2]
[312331869,1705785032199,-155.0,0.00019604,2]
[312331870,1705785032209,-248.83954256,0.00019604,2]
[312331871,1705785032219,-155.0,0.00019604,2]
[312331872,1705785032229,-215.18715609,0.00019605,2]
[312331873,1705785032239,-1204.08066504,0.00019605,2]
[312331874,1705785032249,-228.3967642,0.00019605,2]
[312331875,1705785032259,-234.50854067,0.00019605,2]
[312331876,1705785032269,-759.28292396,0.00019605,2]
[312331877,1705785032279,-162.27355043,0.00019605,2]
[312331878,1705785032289,-43019.25246543,0.00019605,2]
[312331880,1705785032299,-203.37274756,0.00019606,2]
[312331882,1705785032309,-242.58443095,0.00019606,2]
[312331884,1705785032319,-155.0,0.00019606,2]
[312331886,1705785032329,-196.82515123,0.00019606,2]
[312331887,1705785032340,-4274.40730541,0.00019606,2]
[312331888,1705785032350,-2705.0,0.00019607,2]
[312331890,1705785032360,-588.54,0.00019607,2]
[312331892,1705785032370,-3678.58919441,0.00019607,2]
[312331894,1705785032380,-369.92,0.00019609,2]
[312331895,1705785032390,-614.41565471,0.00019635,2]
[312331896,1705785032402,-386.65,0.00019694,2]
[312331897,1705785032412,-167.1,0.00019704,2]
[312331899,1705785032422,-176.15,0.00019885,2]
[312331901,1705785032432,-1852.42,0.00019929,2]
[312331903,1705785032443,-200.0,0.00019932,2]
[312331905,1705785032452,-221.42,0.00019946,2]
[312331907,1705785032463,-361.76,0.00019949,2]
[312331909,1705785032472,-189.72,0.00019974,2]
[312331911,1705785032483,-327.8738,0.00019976,2]
[312331913,1705785032494,-10346.8,0.00019981,2]
[312331915,1705785032505,-500.0,0.00019981,2]
[312331917,1705785032516,-23900.0,0.00019989,2]
[312331929,1705785032808,-279.4509167,0.0002,2]
[312331930,1705785032828,-716.73,0.00020011,2]
[312331931,1705785032840,-189.72,0.00020029,2]
[312331932,1705785032850,-164.48549819,0.00020082,2]
[312331933,1705785032859,-189.72,0.00020084,2]
[312331934,1705785032868,-189.72,0.00020139,2]
[312331935,1705785032877,-189.72,0.00020194,2]
[312331936,1705785032887,-166.64,0.00020203,2]
[312331937,1705785032896,-189.72,0.00020248,2]
[312331938,1705785032905,-374.90486076,0.00020285,7]
[312331939,1705785032915,-560.76781231,0.0002029,2]
[312331940,1705785032924,-189.72,0.00020303,2]
[312331941,1705785032933,-189.72,0.00020358,2]
[312331942,1705785032942,-189.72,0.00020413,2]
[312331943,1705785032951,-189.72,0.00020467,2]
[312331944,1705785032960,-189.72,0.00020522,2]
[312331945,1705785032970,-180.4,0.00020537,2]
[312331946,1705785032980,-2000.0,0.00020548,2]
[312331947,1705785032989,-180.4,0.00020558,2]
[312331948,1705785032998,-189.72,0.00020577,2]
[312331949,1705785033008,-180.4,0.0002058,2]
[312331950,1705785033017,-180.4,0.00020602,2]
[312331951,1705785033027,-180.4,0.00020623,2]
[312331952,1705785033053,-189.72,0.00020632,2]
[312331953,1705785033063,-180.4,0.00020645,2]
[312331954,1705785033073,-180.4,0.00020666,2]
[312331955,1705785033082,-189.72,0.00020687,2]
[312331956,1705785033091,-180.4,0.00020688,2]
[312331957,1705785033101,-180.4,0.0002071,2]
[312331958,1705785033111,-180.4,0.00020731,2]
[312331959,1705785033120,-189.72,0.00020741,2]
[312331960,1705785033130,-180.4,0.00020753,2]
[312331961,1705785033139,-180.4,0.00020775,2]
[312331962,1705785033149,-180.4,0.00020796,2]
[312331963,1705785033158,-189.72,0.00020796,2]
[312331964,1705785033167,-180.4,0.00020818,2]
[312331965,1705785033176,-180.4,0.00020839,2]
[312331966,1705785033186,-3190.67771766,0.00020845,2]
[312331967,1705785033195,-189.72,0.00020851,2]
[312331968,1705785033204,-180.4,0.00020861,2]
[312331969,1705785033213,-180.4,0.00020883,2]
[312331970,1705785033222,-180.4,0.00020904,2]
[312331971,1705785033231,-189.72,0.00020906,2]
[312331972,1705785033240,-180.4,0.00020926,2]
[312331973,1705785033249,-180.4,0.00020947,2]
[312331974,1705785033259,-189.72,0.00020961,2]
[312331975,1705785033268,-189.72,0.00021015,2]
[312331976,1705785033277,-164.48549819,0.00021021,2]
[312331977,1705785033286,-630.08,0.00021024,2]
[312331978,1705785033295,-224.06,0.00021025,2]
[312331979,1705785033304,-176.15,0.00021211,2]
[312331980,1705785033314,-206.0,0.0002125,2]
[312331981,1705785033324,-588.54,0.00021251,2]
[312331982,1705785033333,-167.47,0.00021388,2]
[312331983,1705785033343,-494.66439797,0.00021496,2]
[312331984,1705785033352,-4628.55776102,0.00021597,2]
[312331985,1705785033362,-247.3440438,0.00021597,2]
[312331986,1705785033371,-1000.0,0.00021616,2]
[312331987,1705785033380,-2500.0,0.00021616,2]
[312331988,1705785033389,-155.0,0.00021616,2]
[312331989,1705785033399,-8402.1972,0.00021616,2]
[312331990,1705785033408,-908.85960301,0.00021616,2]
[312331991,1705785033418,-2323.83,0.00021644,2]
[312331992,1705785033427,-3329.35169132,0.00021714,2]
[312331993,1705785033436,-155.0,0.00021714,2]
[312331994,1705785033446,-1256.24889353,0.00021714,2]
[312331995,1705785033455,-3859.70716788,0.00021714,2]
[312331996,1705785033464,-196.95281856,0.00021714,2]
[312331997,1705785033473,-2620.20267058,0.00021714,2]
[312331998,1705785033483,-155.0,0.00021714,2]
[312331999,1705785033493,-2319.9241295,0.00021714,2]
[312332000,1705785033502,-155.0,0.00021714,2]
[312332001,1705785033511,-217.97798028,0.00021714,2]
[312332002,1705785033520,-286.54163893,0.00021714,2]
[312332003,1705785033529,-230.58874034,0.00021714,2]
[312332004,1705785033539,-726.87796621,0.00021714,2]
[312332005,1705785033548,-268.42503343,0.00021714,2]
[312332006,1705785033557,-1278.13193774,0.00021714,2]
[312332007,1705785033566,-625.89989292,0.00021714,2]
[312332008,1705785033576,-10524.16924153,0.00021714,2]
[312332009,1705785033585,-651.29752707,0.00021714,2]
[312332010,1705785033594,-70156.03012374,0.00021716,2]
[312332011,1705785033607,-30582.56403542,0.00021716,2]
[312332012,1705785033618,-1700.90565307,0.00021716,2]
[312332013,1705785033630,-382.0077164,0.00021716,2]
[312332014,1705785033642,-825.61972449,0.00021716,2]
[312332015,1705785033654,-502.50678473,0.00021716,2]
[312332016,1705785033666,-1073.34824939,0.00021716,2]
[312332017,1705785033689,-650.95813285,0.00021716,2]
[312332018,1705785033701,-297.99553905,0.00021716,2]
[312332019,1705785033712,-2036.85,0.00021716,2]
[312332020,1705785033724,-6630.26057216,0.00021716,2]
[312332021,1705785033736,-2232.02353342,0.00021716,2]
[312332022,1705785033749,-316.11110975,0.00021716,2]
[312332023,1705785033769,-186085.58022553,0.00021716,2]
[312332024,1705785033778,-481.2212,0.00021716,2]
[312332025,1705785033788,-6716.1201,0.00021717,2]
[312332026,1705785033797,-4219.9613,0.00021717,2]
[312332027,1705785033807,-1346.8225,0.00021717,2]
[312332028,1705785033817,-346.1138122,0.00021721,2]
[312332029,1705785033826,-908.85960298,0.00021799,2]
[312332030,1705785033835,-356.18193881,0.000218,2]
[312332031,1705785033844,-911.2594693,0.00021807,2]
[312332032,1705785033854,-164.03979717,0.00021815,2]
[312332033,1705785033863,-1852.58418893,0.00021815,2]
[312332034,1705785033872,-1060.55480173,0.00021815,2]
[312332035,1705785033881,-275.24311985,0.00021815,2]
[312332036,1705785033891,-193.17462862,0.00021815,2]
[312332037,1705785033900,-2020.91899036,0.00021815,2]
[312332038,1705785033909,-26656.44506072,0.00021816,2]
[312332039,1705785033921,-1220.71277758,0.00021816,2]
[312332040,1705785033943,-174.31636133,0.000196,2]
[312332041,1705785033953,-20730.68363867,0.00021816,2]
[312332042,1705785033965,-881.51369091,0.00021816,2]
[312332043,1705785034780,-13212.37530065,0.00021816,2]
[312332044,1705785034789,-301.77797199,0.00021816,2]
[312332045,1705785034799,-1836.7235073,0.00021816,2]
[312332046,1705785034808,-420.81,0.00021816,2]
[312332047,1705785034819,-138863.4674,0.00021817,2]
[312332048,1705785034828,-5358.355,0.00021817,2]
[312332049,1705785034838,-143133.8251,0.00021817,2]
[312332050,1705785034847,-300.0,0.000219,7]
[312332051,1705785034857,-250.0,0.00021918,2]
[312332052,1705785034866,-164.48549819,0.00021961,2]
[312332053,1705785034875,-908.85960298,0.00021983,2]
[312332054,1705785034886,-150.0,0.00021999,2]
[312332055,1705785034896,-150.0,0.00022,2]
[312332056,1705785034906,-351.32,0.00022,2]
[312332057,1705785034915,-1042.29691372,0.00022,2]
[312332058,1705785034925,-346.11381219,0.00022016,2]
[312332059,1705785034934,-369.92,0.00022061,2]
[312332060,1705785034944,-166.64,0.00022103,2]
[312332061,1705785034953,-908.85960298,0.00022166,2]
[312332062,1705785034963,-361.76,0.00022212,2]
[312332063,1705785034972,-356.1819388,0.000223,2]
[312332064,1705785034982,-600.0,0.000223,8]
[312332065,1705785034991,-346.11381219,0.00022311,2]
[312332066,1705785035001,-908.85960298,0.0002235,2]
[312332067,1705785035010,-900.0,0.000224,8]
[312332068,1705785035020,-177.01,0.00022413,2]
[312332069,1705785035029,-2323.83,0.00022445,2]
[312332070,1705785035040,-150.0,0.000225,2]
[312332071,1705785035050,-1200.0,0.000225,8]
[312332072,1705785035060,-908.85960298,0.00022533,2]
[312332073,1705785035070,-176.15,0.00022536,2]
[312332074,1705785035081,-150.0,0.00022547,2]
[312332075,1705785035090,-150.0,0.00022548,2]
[312332076,1705785035100,-1500.0,0.000226,8]
[312332077,1705785035109,-180.0,0.00022603,2]
[312332078,1705785035120,-346.11381219,0.00022605,2]
[312332079,1705785035135,-300.0,0.000227,8]
[312332080,1705785035149,-908.85960298,0.00022717,2]
[312332081,1705785035159,-499.99,0.0002274,2]
[312332082,1705785035168,-10000.0,0.0002274,2]
[312332083,1705785035178,-796.70859821,0.000228,2]
[312332084,1705785035188,-356.1819388,0.000228,2]
[312332085,1705785035198,-300.0,0.000228,8]
[312332086,1705785035207,-796.70859816,0.00022809,2]
[312332087,1705785035217,-800.0,0.00022816,2]
[312332088,1705785035229,-796.70859816,0.00022818,2]
[312332089,1705785035239,-796.70859816,0.00022827,2]
[312332090,1705785035249,-796.70859816,0.00022836,2]
[312332091,1705785035260,-796.70859816,0.00022845,2]
[312332092,1705785035270,-796.70859816,0.00022855,2]
[312332093,1705785035280,-796.70859816,0.00022864,2]
[312332094,1705785035289,-796.70859816,0.00022873,2]
[312332095,1705785035300,-796.70859816,0.00022882,2]
[312332096,1705785035310,-796.70859816,0.00022891,2]
[312332097,1705785035319,-588.54,0.00022895,2]
[312332098,1705785035328,-156.84105949,0.00022896,2]
[312332099,1705785035338,-1248.34,0.00022896,2]
[312332100,1705785035348,-1155.0,0.00022897,2]
[312332101,1705785035358,-129580.4451,0.00022897,2]
[312332102,1705785035368,-1623.7893,0.00022897,2]
[312332103,1705785035379,-616.5387,0.00022899,2]
[312332104,1705785035389,-5000.0,0.00022899,2]
[312332105,1705785035399,-250.0,0.000229,2]
[312332106,1705785035409,-39817.1612,0.000229,2]
[312332107,1705785035419,-19683.9634,0.000229,2]
[312332108,1705785035429,-111589.84663983,0.000229,2]
[312332109,1705785035441,-364.28267879,0.000229,2]
[312332110,1705785035453,-14022.07199718,0.000229,2]
[312332111,1705785035485,-1185.74121281,0.000229,2]
[312332112,1705785035497,-911.68,0.000229,2]
[312332113,1705785035509,-766.95294903,0.000229,2]
[312332114,1705785035521,-2491.54823111,0.000229,2]
[312332115,1705785035532,-734.66922033,0.000229,2]
[312332116,1705785035549,-5104.0,0.000229,2]
[312332117,1705785035562,-595.96207747,0.000229,2]
[312332118,1705785035574,-1620.71715576,0.000229,2]
[312332119,1705785035782,-122031.79852583,0.000229,2]
[312332120,1705785035794,-709.67685024,0.000229,2]
[312332121,1705785035806,-656.44624679,0.000229,2]
[312332122,1705785035835,-2105.34121199,0.000229,2]
[312332124,1705785038068,-161.84530984,0.000196,2]
[312332125,1705785038077,-158.86466524,0.000196,2]
[312332126,1705785038087,-1365.33757079,0.000196,2]
[312332127,1705785038098,-190.97652873,0.00019884,2]
[312332128,1705785038107,-204.0,0.0002125,2]
[312332129,1705785038118,-155.0,0.00021714,2]
[312332130,1705785038127,-155.0,0.00021714,2]
[312332131,1705785038137,-8513.36504574,0.00021714,2]
[312332132,1705785038148,-241014.31297135,0.000229,2]
[312332133,1705785038158,-164.48549819,0.000229,2]
[312332134,1705785038168,-796.70859816,0.000229,2]
[312332135,1705785038177,-346.11381219,0.000229,2]
[312332136,1705785038188,-160.75482602,0.000229,2]
[312332137,1705785038197,-908.85960298,0.000229,2]
[312332138,1705785038207,-331.82457108,0.000229,2]
[312332139,1705785038217,-499.07918906,0.000229,2]
[312332140,1705785038226,-3672.54821962,0.000229,2]
[312332141,1705785038236,-300.0,0.000229,8]
[312332142,1705785038246,-9917.16990978,0.0002298,2]
[312332143,1705785038258,-911.2594693,0.0002299,2]
[312332144,1705785038268,-911.2594693,0.0002299,2]
[312332145,1705785038277,-428.71667088,0.00022993,5]
[312332146,1705785038286,-1137.38262952,0.00022995,2]
[312332147,1705785038295,-155.0,0.00022995,2]
[312332148,1705785038305,-915.350249,0.00022995,2]
[312332149,1705785038314,-155.27713894,0.00022995,2]
[312332150,1705785038324,-155.0,0.00022995,2]
[312332151,1705785038334,-473.20829439,0.00022995,2]
[312332152,1705785038343,-155.0,0.00022995,2]
[312332153,1705785038352,-155.16599658,0.00022995,2]
[312332154,1705785038362,-155.74477967,0.00022995,2]
[312332155,1705785038371,-155.7702296,0.00022995,2]
[312332156,1705785038381,-8434.46944519,0.00022995,2]
[312332157,1705785038390,-940.48918206,0.00022995,2]
[312332158,1705785038399,-1391.79688361,0.00022995,2]
[312332159,1705785038409,-384.58030079,0.00022995,2]
[312332160,1705785038419,-171.89568973,0.00022995,2]
[312332161,1705785038430,-4785.03700035,0.00022995,2]
[312332162,1705785038439,-220.39096062,0.00022996,2]
[312332163,1705785038449,-318.31330327,0.00022996,2]
[312332164,1705785038459,-164.61995834,0.00022996,2]
[312332166,1705785038469,-155.49151411,0.00022996,2]
[312332168,1705785038479,-1767.60331455,0.00022996,2]
[312332170,1705785038489,-501.14997893,0.00022997,2]
[312332172,1705785038498,-248.21561639,0.00022998,2]
[312332174,1705785038508,-211.39780005,0.00022998,2]
[312332176,1705785038518,-246.69922222,0.00022998,2]
[312332178,1705785038527,-510.2864436,0.00022998,2]
[312332180,1705785038537,-1070.43397792,0.00022998,2]